[Event "SixDays Budapest March IM B 2025"]
[Site "Budapest"]
[Date "2025.03.26"]
[Round "5.1"]
[White "Shah, Vishwa"]
[Black "Chakrabarty, Reyaansh"]
[Result "0-1"]
[Annotator "TA"]
[ECO "B12"]
[WhiteElo "2172"]
[BlackElo "2181"]
[PlyCount "96"]
[EventDate "2025.03.23"]
[EventType "tourn"]
[EventCountry "HUN"]
[SourceTitle "playchess.com"]
[Source "ChessBase"]
[SourceQuality "1"]
[TimeControl "5400+30"]

{[%evp 9,96,15,41,7,25,19,21,4,11,12,36,21,10,-16,26,-10,-10,-10,-1,-17,-10,-10,-13,-16,0,-9,-8,-19,0,-22,-21,-33,-33,-41,-33,-28,-35,-62,-37,-65,-25,-75,-39,-88,-63,-66,-65,-65,-72,-68,-67,-131,-125,-158,-183,-189,-175,-280,-253,-289,-288,-280,-276,-270,-250,-270,-278,-312,-287,-314,-315,-430,-426,-454,-466,-562,-573,-629,-628,-617,-562,-710,-705,-800,-751,-1170,-1138,-918,-810]} 1. e4 {[%emt 0:00:02]} c6 {[%emt 0:09:44]} 2. d4 {[%emt 0:00:07]} d5 {[%emt 0:00:02]} 3. e5 {[%emt 0:00:05]} c5 {[%emt 0:00:04]} 4. Nf3 {[%emt 0:00:05]} cxd4 {[%emt 0:00:03]} 5. Nxd4 {[%emt 0:00:07]} Nc6 {[%emt 0:00:01]} 6. Nxc6 {[%emt 0:00:10] B12: Caro-Kann: Advance Variation.} bxc6 {[%emt 0:00:09]} 7. Bd3 {[%emt 0:00:06]} e6 {[%emt 0:00:04]} 8. O-O {[%emt 0:00:10] The position is equal.} Ne7 {[%emt 0:00:01]} 9. Be3 {[%emt 0:00:10]} a5 {[%emt 0:04:07]} 10. Qe2 {[%emt 0:01:49]} Nf5 $146 {[%emt 0:02:56]} ({Predecessor:} 10... Qc7 11. f4 c5 12. c4 d4 13. Bf2 Bb7 14. Nd2 h5 15. Be4 Nf5 16. Qd3 g6 {1-0 Martinez Alcantara,J (2598)-Indjic,A (2605) Titled Tuesday intern op 22 Mar Late blitz 2022 (7)}) 11. Bc1 {[%emt 0:11:42]} Qb6 {[%emt 0:01:16]} 12. Nd2 {[%emt 0:01:16]} Be7 {[%emt 0:03:02]} 13. Nf3 {[%emt 0:00:20]} Ba6 {[%emt 0:00:07]} 14. Bxa6 {[%emt 0:06:32]} Qxa6 {[%emt 0:00:52]} 15. Qxa6 {[%emt 0:02:38]} Rxa6 {[%emt 0:00:09]} 16. g4 {[%emt 0:00:24]} Nh4 {[%emt 0:02:58]} 17. Nxh4 {[%emt 0:00:05]} Bxh4 {[%emt 0:00:06]} 18. Be3 {[%emt 0:09:14]} Bd8 {[%emt 0:00:18]} 19. Kg2 {[%emt 0:01:56]} Bb6 {[%emt 0:00:25]} 20. Bxb6 {[%emt 0:01:16]} Rxb6 $11 {[%emt 0:00:10][%mdl 4096] Endgame KRR-KRR} 21. b3 {[%emt 0:00:02]} h5 {[%emt 0:02:24]} 22. h3 {[%emt 0:00:35]} Rb4 {[%emt 0:01:41]} 23. f3 {[%emt 0:03:31]} Kd7 {[%emt 0:02:52]} 24. Rad1 {[%emt 0:01:12]} a4 {[%emt 0:01:52]} 25. Rd3 {[%emt 0:11:55]} (25. Rb1 $11) 25... Ra8 {[%emt 0:02:13]} 26. Kf2 {[%emt 0:11:40]} (26. Kg3 $15 {feels stronger.}) 26... h4 {[%emt 0:03:13]} 27. Ke3 {[%emt 0:03:28]} axb3 {[%emt 0:01:17]} 28. axb3 {[%emt 0:00:04]} Ra2 {[%emt 0:00:56]} 29. Rc1 {[%emt 0:00:39]} c5 {[%emt 0:02:29] Against Rd4} 30. Kd2 {[%emt 0:02:35] Black continues to play with concentration.} ({Better is} 30. g5 $1 $15) 30... Kc6 {[%emt 0:00:53]} 31. Re3 {[%emt 0:04:14]} d4 {[%emt 0:01:05] Black is more active.} 32. Rd3 {[%emt 0:01:24]} Kd5 {[%emt 0:00:03]} 33. Re1 {[%emt 0:09:02]} (33. f4 {was worth a try.}) 33... c4 $19 {[%emt 0:00:29]} 34. bxc4+ {[%emt 0:00:04]} Rxc4 {[%emt 0:00:07]} 35. Rc1 {[%emt 0:00:08]} Kxe5 {[%emt 0:00:34]} 36. Rb3 {[%emt 0:00:02]} g5 {[%emt 0:02:21]} (36... Kf4 37. Rb7 $19) 37. Kd3 {[%emt 0:02:53]} Rca4 {[%emt 0:02:30]} 38. f4+ {[%emt 0:03:22]} gxf4 {[%emt 0:00:32]} ({Resist} 38... Kxf4 39. Rf1+ Ke5 (39... Kg3 40. Ke2+ d3+ 41. Rxd3+ Kh2 42. Rf2+ Kh1 43. Rd1#) 40. Rb5+ Kd6 41. Rxf7 $19) 39. Rb5+ {[%emt 0:00:23]} Kf6 {[%emt 0:00:20]} 40. Rf1 {[%emt 0:01:25]} R2a3+ {[%emt 0:00:05] Black is clearly winning.} 41. Kd2 {[%emt 0:00:13]} e5 {[%emt 0:00:36]} (41... Rxh3 42. Rxf4+ Kg6 43. g5 Rh2+ 44. Kd3 Ra3+ 45. Kxd4 Rd2+ (45... Rxc2 46. Rf6+ Kg7 47. Rb7 $15) 46. Ke4 Ra4+ (46... Rxc2 $2 47. Rf6+ Kg7 48. Rb7 $19) 47. Ke3 Rxf4 (47... Rxc2 $2 {too greedy.} 48. Rxa4 h3 49. Rh4 $18) 48. Kxd2 $19) 42. Rb6+ {[%emt 0:01:12]} Kg5 {[%emt 0:00:29]} 43. Rb7 {[%emt 0:00:46]} Rxh3 {[%emt 0:01:09] [#]} 44. Rxf7 {[%emt 0:00:05]} Kxg4 {[%emt 0:00:03]} 45. Rg7+ {[%emt 0:00:11]} Kf5 {[%emt 0:00:08] And now ...Rh2+ would win.} 46. Rf7+ {[%emt 0:01:24]} Ke6 {[%emt 0:00:01]} 47. Rb7 {[%emt 0:00:39]} Rh2+ {[%emt 0:00:05]} 48. Kd3 {[%emt 0:00:04]} Ra3+ {[%emt 0:00:12] Weighted Error Value: White=0.46/Black=0.06 (flawless)   Mistake:       	White=4     	---        Inaccurate:     	White=5     	Black=3      OK:         	White=14    	Black=18} 0-1

[Event "SixDays Budapest March IM B 2025"]
[Site "Budapest"]
[Date "2025.03.26"]
[Round "5.2"]
[White "Vuelban, Virgilio"]
[Black "Banerjee, Supratit"]
[Result "0-1"]
[Annotator "TA"]
[ECO "A05"]
[WhiteElo "2244"]
[BlackElo "2250"]
[PlyCount "86"]
[EventDate "2025.03.23"]
[EventType "tourn"]
[EventCountry "HUN"]
[SourceTitle "playchess.com"]
[Source "ChessBase"]
[SourceQuality "1"]
[TimeControl "5400+30"]

{[%evp 15,86,0,0,0,-13,-22,0,0,0,-11,-21,-24,0,-55,-55,-64,-74,-81,-79,-70,-73,-85,-70,-79,-54,-54,-46,-51,-58,-58,-51,-86,-70,-55,-62,-132,-130,-130,-114,-121,-102,-125,-119,-116,-134,-184,-128,-138,-145,-130,-137,-143,-122,-416,-421,-403,-402,-412,-406,-856,-385,-5219,-4878,-2307,-2303,-1389,-716,-662,-654,-29984,-29985,-29991,-29987]} 1. Nf3 {[%emt 0:08:06]} Nf6 {[%emt 0:00:08]} 2. g3 {[%emt 0:00:19]} g6 {[%emt 0:00:47]} 3. b3 {[%emt 0:00:24]} Bg7 {[%emt 0:00:06]} 4. Bb2 {[%emt 0:00:04]} O-O {[%emt 0:00:12]} 5. Bg2 {[%emt 0:00:12]} d6 {[%emt 0:00:15]} 6. d4 {[%emt 0:00:17]} b5 {[%emt 0:00:22]} 7. O-O {[%emt 0:03:12]} Bb7 {[%emt 0:00:22]} 8. Nbd2 {[%emt 0:00:35]} Nbd7 {[%emt 0:02:32]} 9. c4 {[%emt 0:00:09] A49: 1 d4 Nf6 2 Nf3 g6 3 g3: Anti-King's Indian systems.} bxc4 {[%emt 0:00:20]} 10. Nxc4 {[%emt 0:00:07]} c5 {[%emt 0:04:22]} 11. dxc5 {[%emt 0:05:36] The position is equal.} Nxc5 {[%emt 0:00:29]} 12. Nd4 $146 {[%emt 0:00:15]} (12. b4 Ncd7 13. Na5 Be4 14. Rc1 Qb6 15. a3 Rac8 16. Qd4 Qb8 17. Bh3 Rxc1 18. Rxc1 {1-0 Shimanov,A (2578)-Samadov,R (2434) Wch Rapid New York 2024 (3)}) 12... Bxg2 {[%emt 0:04:21]} 13. Kxg2 {[%emt 0:00:05]} Qd7 {[%emt 0:03:55]} 14. Qd2 {[%emt 0:01:57]} (14. f3 $11) 14... Nfe4 $15 {[%emt 0:07:23]} 15. Qa5 {[%emt 0:03:10]} d5 {[%emt 0:03:09]} 16. Ne3 {[%emt 0:01:29]} e5 {[%emt 0:04:13]} 17. Nf3 {[%emt 0:00:18]} d4 {[%emt 0:04:13] Black plays in the center} 18. Nc4 {[%emt 0:04:29]} Qe6 {[%emt 0:02:30]} 19. Nfd2 {[%emt 0:07:00]} Rfc8 {[%emt 0:07:12]} 20. Nxe4 {[%emt 0:02:52]} Nxe4 {[%emt 0:01:07]} 21. f3 {[%emt 0:00:07]} Nc5 {[%emt 0:08:30][%cal Be4c5,Bc5a4,Ba4c3][%mdl 32]} 22. Qd2 {[%emt 0:07:15] [#]} Na4 $1 {[%emt 0:03:57]} 23. Ba3 {[%emt 0:07:01][%cal Oc4d6]} (23. Rac1 h5) 23... e4 {[%emt 0:13:23]} 24. Nd6 {[%emt 0:09:08][%cal Od6c8]} e3 {[%emt 0:02:09]} 25. Qd1 {[%emt 0:00:53]} ({White should try} 25. Qd3 $15) 25... Nc3 $17 {[%emt 0:01:04][%csl Oc3] Strong Square Black (c3)} 26. Qd3 {[%emt 0:00:07]} Rc6 {[%emt 0:01:37]} 27. Nc4 {[%emt 0:00:22]} Rb8 {[%emt 0:04:36]} 28. Rfc1 {[%emt 0:10:52]} h5 $36 {[%emt 0:09:12][%mdl 2048] White is under strong pressure. Black is much more active.} 29. Rc2 {[%emt 0:00:52]} h4 {[%emt 0:01:25]} 30. Rac1 {[%emt 0:11:41]} (30. Bb2 $17) 30... Bf6 {[%emt 0:04:36]} (30... Ra6 $1 $19 31. Ra1 h3+ 32. Kf1 Nd5) 31. Nd6 {[%emt 0:06:24]} hxg3 {[%emt 0:01:56]} (31... Rxd6 32. Bxd6 Rd8 (32... Qxd6 33. Rxc3 h3+ 34. Kf1 $16) 33. Bc5 $14) 32. hxg3 {[%emt 0:01:07] [#]} Kg7 $1 {[%emt 0:00:34]} (32... Rxd6 33. Bxd6 Rc8 (33... Qxd6 $2 {loses.} 34. Rxc3 Kg7 35. Rc6 $18) 34. Bb4 $16) 33. Rh1 {[%emt 0:01:09] Wards off Rh8} Rd8 {[%emt 0:02:10] Some like it hot} ({And not} 33... Rxd6 34. Bxd6 Rd8 (34... Qxd6 35. Rxc3 a5 36. Rc4 $18) 35. Bb4 $16) 34. Ne4 {[%emt 0:05:15][%mdl 8192] [#] Now White is beyond hope.} (34. Nc4 $17) 34... Nxe4 $1 $19 {[%emt 0:00:10]} 35. Rxc6 {[%emt 0:00:18]} Qxc6 {[%emt 0:00:04]} 36. fxe4 {[%emt 0:00:24]} Qe6 {[%emt 0:00:26]} 37. Bb2 {[%emt 0:00:49]} (37. Bb4 $142) 37... Be5 {[%emt 0:00:34]} (37... Qg4 $142 {( -> ...Be5)} 38. Rg1 Be5) 38. Qb1 $2 {[%emt 0:04:18]} (38. Qb5) 38... Qg4 {[%emt 0:00:09][%csl LRe2,LRg3]} 39. Qe1 {[%emt 0:00:40]} Qxe4+ {[%emt 0:00:07]} 40. Kg1 {[%emt 0:00:03]} Qc2 {[%emt 0:00:38]} 41. Ba1 {[%emt 0:00:39]} Rd6 {[%emt 0:00:53][%cal Od6f6] ...Rf6! is the strong threat.} 42. g4 {[%emt 0:00:14]} Rf6 {[%emt 0:00:22]} 43. g5 {[%emt 0:01:05]} Rf2 {[%emt 0:00:14] Weighted Error Value: White=0.67/Black=0.30  Loses game:     	White=1     	---        Mistake:       	White=5     	Black=2      Inaccurate:     	White=1     	---        OK:         	White=11    	Black=10     Best:        	White=2     	Black=4      Strong:       	---       	Black=2} 0-1

[Event "SixDays Budapest March IM B 2025"]
[Site "Budapest"]
[Date "2025.03.26"]
[Round "5.3"]
[White "Horvath, David"]
[Black "Suder, Jakub"]
[Result "1/2-1/2"]
[Annotator "TA"]
[ECO "D31"]
[WhiteElo "2279"]
[BlackElo "2347"]
[PlyCount "60"]
[EventDate "2025.03.23"]
[EventType "tourn"]
[EventCountry "HUN"]
[SourceTitle "playchess.com"]
[Source "ChessBase"]
[SourceQuality "1"]
[TimeControl "5400+30"]

{[%evp 17,59,11,17,-22,0,-9,22,0,4,-7,6,0,0,-49,18,14,4,24,40,21,21,13,14,0,29,23,35,35,26,0,69,33,89,91,91,91,88,73,79,74,71,77,74,73]} 1. c4 {[%emt 0:00:28]} e6 {[%emt 0:00:10]} 2. Nc3 {[%emt 0:00:33]} d5 {[%emt 0:00:05]} 3. d4 {[%emt 0:00:04]} c6 {[%emt 0:00:05]} 4. e3 {[%emt 0:05:45]} Bd6 {[%emt 0:00:26]} 5. Nf3 {[%emt 0:00:47]} f5 {[%emt 0:00:07]} 6. Bd3 {[%emt 0:01:15]} Nf6 {[%emt 0:01:11]} 7. O-O {[%emt 0:02:49]} Ne4 {[%emt 0:00:59]} 8. Ne5 {[%emt 0:01:51]} O-O {[%emt 0:01:11]} 9. f4 {[%emt 0:00:07]} Nd7 {[%emt 0:02:40]} 10. Bd2 {[%emt 0:02:16] A85: Dutch Defence: 2 c4 Nf6 3 Nc3.} Nxe5 {[%emt 0:06:24]} 11. fxe5 {[%emt 0:01:03] A sharp opening} Be7 {[%emt 0:01:10]} (11... Nxd2 $5 12. Qxd2 dxc4 $16) 12. Nxe4 {[%emt 0:03:45] The position is equal.} dxe4 {[%emt 0:00:27]} 13. Be2 {[%emt 0:00:56]} b6 $146 {[%emt 0:04:08]} (13... c5 14. Bc3 Bg5 15. Qd2 cxd4 16. Bxd4 a5 17. Rad1 Qe7 18. Bb6 Qb4 19. Qd4 Qa4 20. Qc3 Qb4 21. Qd4 Qa4 22. Qc3 Qb4 23. Qd4 Qa4 {½-½ Levin,E (2478)-Savchenko,B (2513) RUS-ch Rapid 2023 (11)}) 14. b4 {[%emt 0:05:47][%cal Bb2b4,Bb4b5][%mdl 32]} c5 {[%emt 0:07:58]} 15. dxc5 {[%emt 0:01:06]} (15. bxc5 $11 bxc5 16. Bc3) 15... bxc5 {[%emt 0:01:21]} (15... a5 $1 $15) 16. b5 $11 {[%emt 0:00:03]} Qc7 {[%emt 0:05:05]} 17. Bc3 {[%emt 0:00:02][%cal Bd2c3,Bc3b2,Bb2a3][%mdl 32]} Bb7 {[%emt 0:02:06]} 18. a4 {[%emt 0:13:29][%cal Ba2a4,Ba4a5,Ba5a6][%mdl 32]} Bg5 {[%emt 0:03:40]} 19. Qc1 {[%emt 0:02:01]} Rad8 {[%emt 0:01:11]} 20. Bb2 {[%emt 0:10:23]} Bh6 {[%emt 0:07:05]} 21. a5 {[%emt 0:22:35]} Rd7 {[%emt 0:05:15]} 22. a6 {[%emt 0:01:46]} Ba8 {[%emt 0:00:05]} 23. Qc3 {[%emt 0:03:16]} Qd8 {[%emt 0:13:29]} ({Better is} 23... Rd3 $11 24. Bxd3 Bxe3+ 25. Kh1 Bd4) 24. Rad1 {[%emt 0:01:53]} Rff7 {[%emt 0:06:05]} (24... Rd3 $1 $14 25. Bxd3 Bxe3+ 26. Kh1 exd3 27. Qxd3 (27. Rxd3 Qg5 $14) 27... Qg5) 25. Ba3 $16 {[%emt 0:02:47] White is better.} Qc7 {[%emt 0:00:12][%cal Od7d3]} 26. Bc1 {[%emt 0:02:16]} g6 {[%emt 0:03:17]} 27. Rxd7 {[%emt 0:02:41]} Rxd7 {[%emt 0:00:06]} 28. Rd1 {[%emt 0:00:10]} Rxd1+ {[%emt 0:00:20]} 29. Bxd1 {[%emt 0:00:02]} Bg7 {[%emt 0:00:37]} 30. Bb2 {[%emt 0:00:23]} Kf7 {[%emt 0:00:47] Weighted Error Value: White=0.14 (very precise) /Black=0.19 (very precise)   Mistake:       	White=1     	Black=3      Inaccurate:     	White=2     	Black=2      OK:         	White=7     	Black=7      Best:        	White=2     	Black=1} 1/2-1/2

[Event "SixDays Budapest March IM B 2025"]
[Site "Budapest"]
[Date "2025.03.26"]
[Round "5.4"]
[White "Kolimar, Kristof Pal"]
[Black "Savanovic, Aleksandar"]
[Result "1/2-1/2"]
[Annotator "TA"]
[ECO "A40"]
[WhiteElo "2284"]
[BlackElo "2355"]
[PlyCount "36"]
[EventDate "2025.03.23"]
[EventType "tourn"]
[EventCountry "HUN"]
[SourceTitle "playchess.com"]
[Source "ChessBase"]
[SourceQuality "1"]
[TimeControl "5400+30"]

{[%evp 11,36,34,41,38,62,20,29,24,33,17,33,28,34,14,15,8,34,8,39,45,86,54,58,52,56,45,55]} 1. d4 {[%emt 0:00:03]} Nf6 {[%emt 0:01:30]} 2. c4 {[%emt 0:00:08]} e6 {[%emt 0:00:11][%cal Be7e6,Be6e5][%mdl 32]} 3. g3 {[%emt 0:00:05]} Bb4+ {[%emt 0:00:06]} 4. Bd2 {[%emt 0:00:07]} Qe7 {[%emt 0:00:06]} 5. Bg2 {[%emt 0:00:14]} Nc6 {[%emt 0:01:14]} 6. e3 {[%emt 0:00:11]} e5 {[%emt 0:03:36]} 7. d5 {[%emt 0:00:17] E00: Catalan Bogo-Indian (3 g3 Bb4+).} Bxd2+ {[%emt 0:00:44]} 8. Nxd2 {[%emt 0:00:31]} Nb8 {[%emt 0:00:07]} 9. Ne2 {[%emt 0:01:44] White has an edge.} O-O {[%emt 0:04:45]} 10. O-O {[%emt 0:00:46]} a5 {[%emt 0:03:09]} 11. Nc3 {[%emt 0:05:50]} d6 {[%emt 0:02:44]} 12. Qc2 {[%emt 0:03:04]} Na6 {[%emt 0:00:45]} 13. a3 {[%emt 0:00:54]} Bd7 {[%emt 0:00:26]} 14. Rab1 {[%emt 0:01:47]} c6 {[%emt 0:15:31]} 15. dxc6 $146 {[%emt 0:09:55]} (15. b4 axb4 16. axb4 c5 17. bxc5 Nxc5 18. Nb3 Ba4 19. Nxa4 Nxa4 20. Bh3 Ra6 21. Ra1 {0-1 Balinov,I (2460)-Beliavsky,A (2660) Mitropa Cup 21st 2002 (4.1)}) 15... Bxc6 {[%emt 0:00:24]} 16. b4 {[%emt 0:04:20]} Bxg2 {[%emt 0:05:23] White is slightly better.} 17. Kxg2 {[%emt 0:01:37]} axb4 {[%emt 0:00:06]} 18. axb4 {[%emt 0:00:06]} Rac8 {[%emt 0:00:20] Weighted Error Value: White=0.14 (very precise) /Black=0.09 (flawless)   Inaccurate:     	White=3     	Black=2      OK:         	White=3     	Black=6} 1/2-1/2

[Event "SixDays Budapest March IM B 2025"]
[Site "Budapest"]
[Date "2025.03.26"]
[Round "5.5"]
[White "Pavan Karthikeya Varma Gunturi"]
[Black "Katsanis, Vasileios Dim"]
[Result "0-1"]
[Annotator "TA"]
[ECO "C15"]
[WhiteElo "2015"]
[BlackElo "2253"]
[PlyCount "86"]
[EventDate "2025.03.23"]
[EventType "tourn"]
[EventCountry "HUN"]
[SourceTitle "playchess.com"]
[Source "ChessBase"]
[SourceQuality "1"]
[TimeControl "5400+30"]

{[%evp 10,86,24,16,12,11,27,25,21,6,15,5,7,-2,2,0,4,8,10,5,10,0,0,0,0,0,0,0,8,0,0,-12,0,-19,-8,-28,-35,-32,-26,-27,-27,-30,-33,-31,-33,-34,-33,-25,-25,-28,-18,-39,-17,-14,-10,-10,-4,-72,-52,-229,-235,-220,-211,-222,-210,-257,-246,-367,-367,-607,-589,-620,-596,-5135,-5306,-29989,-29990,-29994,-29992]} 1. e4 {[%emt 0:00:03]} e6 {[%emt 0:00:36]} 2. d4 {[%emt 0:00:06]} d5 {[%emt 0:00:09]} 3. Nc3 {[%emt 0:00:04]} Bb4 {[%emt 0:00:13]} 4. exd5 {[%emt 0:00:03]} exd5 {[%emt 0:00:05]} 5. Bd3 {[%emt 0:00:25]} Nc6 {[%emt 0:00:12]} 6. Nf3 {[%emt 0:01:50]} Nge7 {[%emt 0:00:49] C01: French: Exchange Variation.} 7. O-O {[%emt 0:06:29]} Bf5 {[%emt 0:11:56]} 8. Bxf5 {[%emt 0:00:50]} Nxf5 {[%emt 0:00:06] White has an edge.} 9. Ne2 {[%emt 0:00:33][%cal Oc2c4]} O-O {[%emt 0:00:43]} 10. Ng3 $146 {[%emt 0:00:58]} (10. Qd3 Qd7 11. Ne5 Nxe5 12. dxe5 Rfe8 13. Bf4 c6 14. Rad1 Qe6 15. h3 Ba5 16. g4 {0-1 Vokhidov,S (2643)-Piesik,P (2415) Titled Tuesday intern op 27th Aug Early blitz 2024 (6)}) 10... Qd7 {[%emt 0:05:27]} 11. Qd3 {[%emt 0:03:45]} Nxg3 {[%emt 0:01:11]} 12. hxg3 {[%emt 0:00:05]} Rfe8 {[%emt 0:15:18]} 13. Bf4 {[%emt 0:02:48]} Bf8 {[%emt 0:02:06]} 14. c3 {[%emt 0:00:58]} a6 {[%emt 0:01:01]} 15. Rfe1 {[%emt 0:02:15]} f6 {[%emt 0:01:59]} 16. Rxe8 {[%emt 0:03:24]} Rxe8 {[%emt 0:00:15]} 17. Re1 {[%emt 0:01:25]} Rxe1+ {[%emt 0:00:27]} 18. Nxe1 {[%emt 0:00:05]} Nd8 {[%emt 0:02:56][%cal Bc6d8,Bd8e6,Be6g7,Bg7f5][%mdl 32]} 19. b3 {[%emt 0:03:24]} g6 {[%emt 0:03:39]} 20. Nc2 {[%emt 0:01:51]} Ne6 {[%emt 0:00:26]} 21. Be3 {[%emt 0:01:37]} Kf7 {[%emt 0:01:17]} 22. Kf1 {[%emt 0:03:16]} h5 {[%emt 0:02:43]} 23. Ne1 {[%emt 0:04:25]} Be7 {[%emt 0:04:22]} 24. Qe2 {[%emt 0:01:47]} Ng7 {[%emt 0:01:44]} 25. Nd3 {[%emt 0:02:01]} Qf5 {[%emt 0:03:24]} 26. Bd2 {[%emt 0:04:41]} g5 {[%emt 0:05:39]} (26... c6 {simplifies} 27. Qf3 Qxf3 28. gxf3 a5) 27. Qf3 $1 {[%emt 0:04:43]} Ke6 {[%emt 0:06:02]} 28. Qxf5+ {[%emt 0:02:20]} Nxf5 $15 {[%emt 0:00:32][%mdl 4096] Endgame KBN-KBN} 29. Ke2 {[%emt 0:00:09]} b6 {[%emt 0:00:19]} 30. Be3 {[%emt 0:02:04]} Nd6 {[%emt 0:03:59]} 31. f3 {[%emt 0:03:43]} Nf5 {[%emt 0:00:57]} 32. Bf2 {[%emt 0:05:10]} Bd6 {[%emt 0:01:33]} 33. f4 {[%emt 0:00:21]} (33. g4 $11 hxg4 34. fxg4 Ng3+ 35. Bxg3 Bxg3 36. a4) 33... g4 {[%emt 0:02:50] Black is more active.} 34. Ne1 $2 {[%emt 0:04:59] [#] Now White is beyond hope.} ({White should try} 34. c4 $15) 34... h4 $1 $19 {[%emt 0:03:34][%mdl 512]} 35. gxh4 {[%emt 0:02:39] [#]} g3 $1 {[%emt 0:00:13]} 36. Be3 {[%emt 0:02:53]} Nxh4 {[%emt 0:00:10]} 37. c4 {[%emt 0:00:25]} Kf5 {[%emt 0:04:23]} 38. c5 {[%emt 0:02:37]} (38. Bd2 $142) 38... Bxf4 {[%emt 0:00:10]} 39. Bxf4 $2 {[%emt 0:01:16]} (39. c6) 39... Kxf4 {[%emt 0:00:05]} 40. Nd3+ {[%emt 0:00:16]} Ke4 {[%emt 0:00:13]} 41. Nb4 {[%emt 0:01:05]} Nxg2 {[%emt 0:00:39] ( -> ...Nf4+)} 42. Nxa6 {[%emt 0:00:42]} Nf4+ {[%emt 0:00:06]} ({Less strong is} 42... Kxd4 43. Kf3 Ne3 (43... Ne1+ 44. Kxg3 bxc5 45. Nxc7 $17) 44. Kxg3 $19) 43. Kf1 {[%emt 0:00:08]} Kf3 {[%emt 0:00:08] Weighted Error Value: White=0.58/Black=0.03 (flawless)   Loses game:     	White=1     	---        Mistake:       	White=3     	---        Inaccurate:     	White=2     	---        OK:         	White=11    	Black=8      Best:        	---       	Black=1      Strong:       	White=1     	Black=1      Brilliant:      	---       	Black=1} 0-1